Cogmind - Beta 17 @@@ ROGUE MODE // 2026.06.29 @ 12:54:40 Player: D4-RLM Result: Destroyed by D-53 Grenadier with Mini Grenade Launcher Performance ------------- Evolutions (0) 0 Regions Visited (4) 800 Robots Destroyed (24) 120 Value Destroyed (502) 502 Prototype IDs (25) 500 Alien Tech Used (0) 0 Bonus (321) 321 TOTAL SCORE: 2243 Bonus ------- Follower Combat Kills 21 Aligned with FarCom 300 Cogmind --------- Core Integrity 0/250 Matter 300/300 Energy 159/160 System Corruption 1% Temperature Cool (2) Movement Hovering (56) Location -9/Mines Parts ------- > --- POWER (1) -------- Light Nuclear Core > --- PROPULSION (2) --- Hover Unit Hover Unit > --- UTILITY (2) ------ (None) > --- WEAPON (2) ------- Longsword +1 > --- INVENTORY (5) ---- Light Ion Engine Hover Unit Medium Laser Grenade Launcher Scythe Peak State ------------ > --- POWER ------------ Light Nuclear Core > --- PROPULSION ------- Hover Unit Hover Unit > --- UTILITY ---------- (None) > --- WEAPON ----------- Scythe Longsword +1 > --- INVENTORY -------- Light Ion Engine Hover Unit Medium Laser Grenade Launcher [Rating: 16] Favorites ----------- Power Light Ion Engine Engine Light Ion Engine Power Core Light Nuclear Core Propulsion Light Treads Treads Light Treads Hover Unit Hover Unit Utility Seismic Detector Device Seismic Detector Storage Large Storage Unit Weapon Assault Rifle Energy Gun Medium Laser Ballistic Gun Assault Rifle Launcher Grenade Launcher Slashing Weapon Scythe Build | -11 -10 -10 -10 -9 ------- Run | Yrd Mat Min Exi Min Slots Evolved . | . . . . . Power . | . . . . . Propulsion . | . . . . . Utility . | . . . . . Weapon . | . . . . . Parts Attached 21 | 7 5 8 1 . Power 3 | 1 . 2 . . Engine 2 | 1 . 1 . . Core 1 | . . 1 . . Reactor . | . . . . . Propulsion 6 | 2 . 4 . . Treads 2 | 2 . . . . Leg . | . . . . . Wheel . | . . . . . Hover 4 | . . 4 . . Flight . | . . . . . Utility 6 | 2 3 1 . . Device 2 | 1 . 1 . . Storage 4 | 1 3 . . . Processor . | . . . . . Hackware . | . . . . . Protection . | . . . . . Artifact . | . . . . . Weapon 6 | 2 2 1 1 . Energy Gun 2 | 1 1 . . . Energy Cannon . | . . . . . Ballistic Gun 1 | 1 . . . . Ballistic Cannon . | . . . . . Launcher 1 | . 1 . . . Special Weapon . | . . . . . Impact Weapon . | . . . . . Slashing Weapon 2 | . . 1 1 . Piercing Weapon . | . . . . . Special Melee Weapon . | . . . . . Unidentified Prototypes . | . . . . . Parts Lost 6 | . 1 5 . . Power 1 | . . 1 . . Propulsion 2 | . . 2 . . Utility 2 | . . 2 . . Weapon 1 | . 1 . . . Highest Loss Streak 5 | . 1 5 . . To Critical Strikes . | . . . . . Average Backups 7 | . 9 6 4 5 Power . | . 1 . 1 1 Propulsion 4 | . 5 3 1 1 Utility 1 | . 1 . . . Weapon 1 | . 1 1 2 3 Tool/Special . | . . . . . Unused Backups 8 | . . 7 . 1 Power . | . . . . . Propulsion 7 | . . 6 . 1 Utility 1 | . . 1 . . Weapon . | . . . . . Tool/Special . | . . . . . Average Slot Usage (%) 88 | . 99 72 57 57 Engine 11 | . 14 8 . . Core 2 | . . 4 14 14 Treads 19 | . 28 4 . . Hover 7 | . . 21 28 28 Device 11 | . 14 7 . . Storage 9 | . 14 2 . . Energy Gun 11 | . 13 8 . . Ballistic Gun 9 | . 13 2 . . Slashing Weapon 4 | . . 11 14 14 Peak Build Rating 16 | 7 8 9 16 13 Average Rating 7 | 5 7 7 10 13 On Entrance 7 | . 7 8 8 13 Avg Prop Armor Cover (%) . | . . . . . Naked Turns . | . . . . . Heaviest Build 29 | 13 29 28 8 8 Greatest Support 40 | 40 40 40 12 12 Greatest Overweight (x) 2 | 2 . 1 . . Average Overweight (x) . | . . . . . Largest Inventory Capacity 20 | 8 20 15 5 5 Average Capacity 11 | 7 14 6 5 5 Most Carried 15 | 1 15 15 5 5 Average Carried 7 | . 9 5 4 5 Final Capacity 15 | 8 15 5 5 5 Final Carried 15 | 1 15 4 5 5 Class Distribution -------------------- 100% | Mutant Dominant Class ---------------- Mutant | -10/Materials Mutant | -10/Mines Mutant | -10/Exiles Mutant | -9/Mines Resources | -11 -10 -10 -10 -9 ----------- Run | Yrd Mat Min Exi Min Matter Collected 626 | 285 199 123 . 19 Remotely . | . . . . . Salvage Created 775 | 96 349 253 . 77 Parts 57 | 4 33 15 . 5 Haulers Intercepted 1 | . 1 . . . Recyclers Shooed 1 | . 1 . . . Parts Field Recycled . | . . . . . Retrieved Matter . | . . . . . Parts Self-Destructed . | . . . . . Prevented . | . . . . . Parts Restored . | . . . . . Kills | -11 -10 -10 -10 -9 ------- Run | Yrd Mat Min Exi Min Combat Hostiles Destroyed 16 | . 9 5 . 2 Melee 7 | . . 5 . 2 Guns 4 | . 4 . . . AOE 5 | . 5 . . . Classes Destroyed 8 | 2 5 1 . . Worker 3 | . 3 . . . Builder 1 | . 1 . . . Tunneler 1 | 1 . . . . Hauler 1 | . 1 . . . Recycler 2 | 1 1 . . . Swarmer 6 | . 6 . . . Grunt 9 | . 3 4 . 2 Sentry 1 | . . 1 . . Best Kill Streak 5 | 1 5 2 . 2 Combat Bots Only 3 | . 3 2 . 2 Max Kills in Single Turn 4 | 1 4 1 . 1 Gunslinging . | . . . . . Exploded 2 | . 2 . . . Melee 1 | . . 1 . 1 Uniques/NPCs Destroyed . | . . . . . Combat | -11 -10 -10 -10 -9 -------- Run | Yrd Mat Min Exi Min Hostile Shots Fired 83 | . 41 38 . 4 Missed 21 | . 8 12 . 1 Hits 62 | . 33 26 . 3 Projectile 62 | . 33 26 . 3 AOE 2 | . . . . 2 Critical Strikes 2 | . 1 1 . . Part Disruptions 1 | . 1 . . . Damage Taken 915 | . 427 378 . 110 Core 281 | . 49 150 . 82 Absorbed by Shields . | . . . . . Core Remaining (%) 100 | 100 . . . . Volleys Fired 38 | 5 33 . . . Largest 2 | 2 2 . . . Hottest 70 | 70 70 . . . Shots Fired 67 | 10 57 . . . Gun 64 | 10 54 . . . Cannon . | . . . . . Launcher 3 | . 3 . . . Special . | . . . . . Kinetic 33 | 5 28 . . . Thermal 16 | 5 11 . . . Explosive 3 | . 3 . . . Electromagnetic 15 | . 15 . . . Robot Hit Streak 6 | 4 6 . . . Robot Miss Streak 4 | 3 4 . . . Penetration Max . | . . . . . Secondary Targets 1 | . 1 . . . Max Gunslinging Chain 1 | . 1 . . . Shots Hit Robots 65 | 6 32 25 . 2 Core Hits 32 | 3 22 5 . 2 Critical Kills . | . . . . . Critical Parts Destroyed . | . . . . . Critical Strikes 5 | 1 1 3 . . Burn 2 | 1 1 . . . Sever 3 | . . 3 . . Melee Attacks 30 | . . 28 . 2 Impact . | . . . . . Slashing 30 | . . 28 . 2 Piercing . | . . . . . Sneak Attacks 2 | . . 2 . . Combat Hostiles 1 | . . 1 . . Follow-up Attacks . | . . . . . Damage Inflicted 1777 | 81 755 851 . 90 Guns 452 | 81 371 . . . Cannons . | . . . . . Explosions 384 | . 384 . . . Melee 941 | . . 851 . 90 Ramming . | . . . . . Kinetic 244 | 43 201 . . . Thermal 115 | 38 77 . . . Explosive 384 | . 384 . . . Electromagnetic 93 | . 93 . . . Impact . | . . . . . Slashing 941 | . . 851 . 90 Piercing . | . . . . . Highest Corruption 1 | . 1 1 1 1 Average Corruption 1 | . 1 1 1 1 Corruption Purged . | . . . . . Corruption Blocked . | . . . . . Effects 7 | . 1 4 2 . Message Errors 2 | . . 1 1 . Matter Fused 2 | . . 2 . . Heat Flow Errors 1 | . 1 . . . Energy Discharges 1 | . . . 1 . Alerts 1 | . . 1 . . Overload Shots . | . . . . . Overflow Damage 56 | . 5 51 . . Projectiles . | . . . . . Explosions 5 | . 5 . . . Melee 51 | . . 51 . . Knockbacks . | . . . . . Impact . | . . . . . Kinetic . | . . . . . Secondary . | . . . . . Self-Inflicted Damage 10 | . 10 . . . Shots 1 | . 1 . . . Rammed . | . . . . . Targets Rammed . | . . . . . Kicked . | . . . . . Crushed . | . . . . . Highest Temperature 228 | 27 228 13 . . Average Temperature 48 | 12 56 13 . . Received Heat Transfer 321 | . 156 159 . 6 Siege Activations . | . . . . . Martial Activations . | . . . . . Shielding Activations . | . . . . . Robots Disrupted . | . . . . . Combat Hostiles . | . . . . . Robots Corrupted . | . . . . . Combat Hostiles . | . . . . . Parts Fried . | . . . . . Impact Corruptions . | . . . . . Robots Melted . | . . . . . Combat Hostiles . | . . . . . Parts Melted 2 | . 2 . . . Heat Transferred 481 | 185 296 . . . Parts Sabotaged . | . . . . . Parts Stolen . | . . . . . Parts Stripped . | . . . . . Power Chain Reactions . | . . . . . Alert | -11 -10 -10 -10 -9 ------- Run | Yrd Mat Min Exi Min Maximum Alert Level . | . . . . . Low Security (%) 100 | 100 100 100 . 100 Level 1 . | . . . . . Level 2 . | . . . . . Level 3 . | . . . . . Level 4 . | . . . . . Level 5 . | . . . . . High Security . | . . . . . Max Security . | . . . . . Peak Influence 106 | 5 106 96 . 50 Initial . | . . . . . Average 26 | . 29 23 . 42 Influence Increases 579 | 10 303 216 . 50 Destroy 0b10 Robot/C 380 | . 180 160 . 40 Destroy 0b10 Robot/NC 40 | 10 30 . . . Destroy Leader 82 | . 42 30 . 10 Allied During Kill 11 | . . 11 . . Disable Machine 15 | . 15 . . . Destroy Structure 6 | . 6 . . . Lose Combat Pursuer 45 | . 30 15 . . Influence Decreases 529 | 10 303 150 66 . Entered New Map 66 | . . . 66 . Time Decay 423 | 10 293 120 . . Lost Part 40 | . 10 30 . . Squads Dispatched 2 | . 2 . . . Investigation . | . . . . . Extermination . | . . . . . Reinforcement 2 | . 2 . . . Assault . | . . . . . Garrison . | . . . . . Intercept . | . . . . . Searches Triggered . | . . . . . Construction Impeded . | . . . . . Haulers Reinforced . | . . . . . Active Scanning Responses . | . . . . . Cargo Convoy Interrupts . | . . . . . Stealth | -11 -10 -10 -10 -9 --------- Run | Yrd Mat Min Exi Min Distress Signals 1 | . 1 . . . Communications Jammed . | . . . . . Distress Signals . | . . . . . Times Spotted 30 | . 18 8 . 4 Peak Tracking Total 3 | . 3 3 . 2 Tactical Retreats 3 | . 2 1 . . Traps | -11 -10 -10 -10 -9 ------- Run | Yrd Mat Min Exi Min Traps Triggered 1 | . 1 . . . Indirectly . | . . . . . Trap Hack Attempts . | . . . . . Triggered . | . . . . . Disarmed . | . . . . . Reprogrammed . | . . . . . Reused . | . . . . . Traps Extracted . | . . . . . Installed . | . . . . . Triggered . | . . . . . Machines | -11 -10 -10 -10 -9 ---------- Run | Yrd Mat Min Exi Min Machines Disabled 2 | . 2 . . . Max in Single Turn 1 | . 1 . . . Machines Repaired . | . . . . . Machines Dismantled . | . . . . . Machines Sabotaged . | . . . . . Overloaded Fab Kills . | . . . . . Hacking | -11 -10 -10 -10 -9 --------- Run | Yrd Mat Min Exi Min Machines Accessed 4 | . 2 1 1 . Terminals 2 | . 2 . . . Fabricators . | . . . . . Repair Stations . | . . . . . Recycling Units . | . . . . . Scanalyzers . | . . . . . Garrison Access . | . . . . . Total Hacks 6 | . 4 1 1 . Successful 3 | . 1 1 1 . Failed 3 | . 3 . . . Catastrophic . | . . . . . Database Lockouts . | . . . . . Manual 1 | . . . 1 . Terminals 4 | . 4 . . . Fabricators . | . . . . . Repair Stations . | . . . . . Recycling Units . | . . . . . Scanalyzers . | . . . . . Garrison Access . | . . . . . Terminal Hacks 3 | . 1 1 1 . Prototype ID Bank 1 | . 1 . . . Open Door 1 | . . 1 . . Proto ID Catalog 1 | . . . 1 . Fabricator Hacks . | . . . . . Repair Station Hacks . | . . . . . Recycling Unit Hacks . | . . . . . Scanalyzer . | . . . . . Garrison Access Hacks . | . . . . . Unauthorized Hacks . | . . . . . Terminals . | . . . . . Fabricators . | . . . . . Repair Stations . | . . . . . Recycling Units . | . . . . . Scanalyzers . | . . . . . Garrison Access . | . . . . . Data Cores Recovered . | . . . . . Used . | . . . . . Hacking Detections 2 | . 2 . . . Full Trace Events . | . . . . . Feedback Events . | . . . . . Feedback Blocked . | . . . . . Robot Schematics Acquired . | . . . . . Robots Built . | . . . . . Authchips . | . . . . . Time . | . . . . . Total Robot Build Rating . | . . . . . Part Schematics Acquired . | . . . . . Parts Built . | . . . . . Authchips . | . . . . . Time . | . . . . . Total Part Build Rating . | . . . . . Part Studies Acquired . | . . . . . Parts Repaired . | . . . . . Time . | . . . . . Parts Recycled . | . . . . . Recycled Matter . | . . . . . Retrieved Matter . | . . . . . Retrieved Components . | . . . . . Parts Scanalyzed . | . . . . . Part Schematics Acquired . | . . . . . Parts Damaged . | . . . . . Bothacking | -11 -10 -10 -10 -9 ------------ Run | Yrd Mat Min Exi Min Used RIF Installer . | . . . . . Robots Hacked . | . . . . . Non-combat . | . . . . . Combat . | . . . . . Robot Hacks Applied . | . . . . . Relay Couplers Released . | . . . . . Fabnet Peak Effective % . | . . . . . Robots Rewired . | . . . . . Allies Hacked . | . . . . . Hacks Repelled . | . . . . . Allies | -11 -10 -10 -10 -9 -------- Run | Yrd Mat Min Exi Min Total Allies 3 | . . 3 . . Largest Group 3 | . . 3 . . Highest-Rated Group 40 | . . 40 . . Highest-Rated Ally 16 | . . 16 . . Total Orders . | . . . . . Ally Attacks 13 | . . 13 . . Total Damage 88 | . . 88 . . Kills 3 | . . 3 . . Allies Corrupted . | . . . . . Allies Melted . | . . . . . Intel | -11 -10 -10 -10 -9 ------- Run | Yrd Mat Min Exi Min Active Infowar (turns) 1201 | 30 1021 150 . . Seismic 1201 | 30 1021 150 . . Robot Analysis Total . | . . . . . Derelict Logs Recovered 3 | . . 3 . . Drone Launches . | . . . . . Drone Recoveries . | . . . . . Exploration | -11 -10 -10 -10 -9 ------------- Run | Yrd Mat Min Exi Min Turns Passed 1635 | 117 1021 347 135 15 Spaces Moved 1194 | 61 548 328 238 19 Core 14 | 13 . 1 . . Treads 624 | 48 548 28 . . Legs . | . . . . . Wheels . | . . . . . Hover 556 | . . 299 238 19 Flight . | . . . . . Fastest Speed 50 | 50 160 56 56 56 Average Speed 110 | 140 160 65 56 56 Slowest Speed 160 | 160 160 160 56 56 Overloaded Moves . | . . . . . Propulsion Burnouts . | . . . . . Robots Hopped . | . . . . . Potential Cave-ins . | . . . . . Cave-ins Triggered . | . . . . . Exploration Rate (%) 45 | 4 79 73 61 9 Regions Visited 4 Branch Regions 3 Pre-discovered Areas . | . . . . . Known Exits Taken . | . . . . . Unknown Exits Taken 4 | 1 1 1 1 . Scrap Searched . | . . . . . Spaces Dug . | . . . . . Terrain Destroyed 6 | . 6 . . . Melee . | . . . . . Projectile . | . . . . . AOE 6 | . 6 . . . Terrain Rammed . | . . . . . Walls Destroyed . | . . . . . Machines Disabled . | . . . . . Actions | -11 -10 -10 -10 -9 --------- Run | Yrd Mat Min Exi Min Total 1393 | 79 632 422 239 21 Wait 81 | 6 26 49 . . Move 1190 | 60 547 327 237 19 Hop . | . . . . . Pick Up 16 | 1 15 . . . Fast Attach 10 | 7 . 2 1 . Attach 6 | . 1 5 . . Detach 2 | . . 1 1 . Swap 9 | . 8 1 . . Drop 11 | . 2 9 . . Fire 38 | 5 33 . . . Melee 30 | . . 28 . 2 Ram . | . . . . . Kick . | . . . . . Crush . | . . . . . Escape Stasis . | . . . . . Rewire . | . . . . . Trap . | . . . . . Miscellaneous . | . . . . . Route ------- -11/Scrapyard -10/Materials (discovered 3 exits: [*Mat x2] / *Min) -10/Mines (discovered 3 exits: [*Mat x2] / *Exi) -10/Exiles -9/Mines History --------- Turn | Location | Event 7 | -11/Scrapyard | Discovered new exit (range 14) 118 | -11/Scrapyard | Entered Materials 287 | -10/Materials | Discovered new exit (range 16) 316 | -10/Materials | Build established: Mutant 475 | -10/Materials | Discovered new exit (range 16) 867 | -10/Materials | Discovered new exit (range 16) 1139 | -10/Materials | Entered Mines 1171 | -10/Mines | Met a Derelict who couldn't figure out how to use a Trap Extractor 1273 | -10/Mines | Core integrity fell below 50% 1305 | -10/Mines | Learned 4 Materials zone layouts 1307 | -10/Mines | Discovered new exit (range 10) 1308 | -10/Mines | Learned Materials garrison access intel 1310 | -10/Mines | Learned location of 1 exit from Materials 1320 | -10/Mines | Lost 5 parts (1p2n2u) 1346 | -10/Mines | Discovered new exit (range 9) 1396 | -10/Mines | Assisted by bots powering up and referring to "LRC-V3" 1483 | -10/Mines | Deemed a non-threat by the Exiles lab entrance 1483 | -10/Mines | Discovered new exit (range 5) 1486 | -10/Mines | Entered Exiles 1501 | -10/Exiles | Met 8R-AWN 1509 | -10/Exiles | Met EX-HEX 1527 | -10/Exiles | Met EX-BIN 1534 | -10/Exiles | Aligned with FarCom system 1534 | -10/Exiles | Given EX-Vault access code 1548 | -10/Exiles | Opened EX-Vault 1557 | -10/Exiles | Found Longsword +1 1570 | -10/Exiles | Warned to stay clear of 0b10 Research branches 1574 | -10/Exiles | Exiles lab attacked by MAIN.C 1615 | -10/Exiles | Discovered new exit (range 14) 1621 | -10/Exiles | Left Exiles lab with Longsword +1 1621 | -10/Exiles | Entered Mines 1622 | -9/Mines | Assembled infested the area 1627 | -9/Mines | Assisted by a Guerilla fighting off Assembled 1636 | -9/Mines | Core integrity fell below 20% 1636 | -9/Mines | Destroyed by D-53 Grenadier with Mini Grenade Launcher Last Messages --------------- 01622_ ALERT: Infestation in the mines, dispatching Demolisher response squad. 01622_ G-47 Trooper destroyed. 01623_ 5L-KAT: "That was close. Too bad in all the rush we got split up from the others." 01625_ CW-VIR(h): "I'll hold them off! Go on ahead or try to find another way!" 01625_ HV Slug penetrates G-34 Mercenary. 01625_ G-34 Mercenary suffers critical hit (Destroy). 01625_ G-34 Mercenary destroyed. 01627_ A derelict emerges from the shadows: "You need to get out of here! I've been tracking a group of Assembled to figure out where they're coming from, and they're closing on this area, come on!" 01627_ Acquired 19 matter. 01635_ C-45 Heavy ARC bursts open, deploying its payload. 01635_ D-53 Grenadier unfolds itself. Map ----- +----------------------------------------------------+ | ?????????????????????????????????????????????????? | | ?????????????????????????????????????????????????? | | ?????????????????????????????????????????????????? | | ?????????????????????????????????????????????????? | | ?????????????????????????????????????????????????? | | ?????????????????????????????????????????????????? | | ?????????????????????????????????????????????????? | | ?????????????????????#######?????????????????????? | | ?????????????????????# #?????????????????????? | | ?????????????????????#""" #?????????????????????? | | ?????????????????????#""" #?????????????????????? | | ?????????????????????#""" #?????????????????????? | | ?????????????????????# #?????????????????????? | | ????????????????????## *#?????????????????????? | | ????????????????????# [=%#?????????????????????? | | ????????????????????# =% !#?????????????????????? | | ????????????????????# #####?????????????????????? | | ????????????????????# #?????????????????????????? | | ????????????????????# #?????????????????????????? | | ????????????????????# #?????????????????????????? | | ?????????????#??????# #?????????????????????????? | | ?????????????# %????# #?????????????????????????? | | ???????????### dd ###z ####??????????????????????? | | ???????????# # #??????????????????????? | | ??????? # #????????????????????? | | ??????? ### @ #????????????????????? | | ????????# ???????## ###????????????????????? | | ??????????????????## ###??????????????????????? | | ???????????????????# #????????????????????????? | | ???????????????????## ????????????????????????? | | ????????????????????# ????????????????????????? | | ???????????????????? ????????????????????????? | | ??????????????????? ????????????????????????? | | ?????????????????? """ #????????????????????????? | | ?????????????????# """ #????????????????????????? | | ????????????????? """ #????????????????????????? | | ???????????????? ???? ##??????????g?????????????? | | ???????????????? ????##???????????l??????????????? | | ???????????????????????????????????g?????????????? | | ?????????????????????????????????????????????????? | | ?????????????????????????????????????????????????? | | ?????????????????????????????????????????????????? | | ?????????????????????????????????????????????????? | | ?????????????????????????????????????????????????? | | ?????????????????????????????????????????????????? | | ?????????????????????????????????????????????????? | | ?????????????????????????????????????????????????? | | ?????????????????????????????????????????????????? | | ?????????????????????????????????????????????????? | | ?????????????????????????????????????????????????? | +----------------------------------------------------+ Best States ------------- Heat Dissipation 35 Energy Generation 14 Energy Capacity 160 Matter Stores 300 Matter Capacity 300 Sight Range 16 Terrain Scan Density 10 Evasion (%) 53 Recoil Reduction 2 Item Schematics ----------------- None Robot Schematics ------------------ None Fabricated ------------ Nothing Repaired ---------- Nothing Studied --------- None Alien Tech Used ----------------- None Achievements -------------- None Challenges ------------ None Game ------ Seed ThermalMediumTerrabomb Manual? 0 Play Time 00:16:57 Cumulative 32.0 hours Start 2026.06.29 @ 12:38:16 End 2026.06.29 @ 12:54:40 Sessions 1 Manual Loads 0 Difficulty Rogue Special Mode None Game No. 45 Rogue 41 Adventurer 4 Explorer 0 Win Type - Total 0 Types 0/0/0/0/0/0/0/0/0/0 Lore% 9 Gallery% 14 Achievement% 14 Wizard Run 0 Options --------- Layout 2 ASCII 0 Keyboard 1 Movement Numpad Keybinds 0 Fullscreen 1 Font 24/Smallcaps Map View 25x22 Zoom Use 44% Tactical HUD 1 Map Filters NONE Filters NONE Steam 1 RUN: 81467acf-8910-4249-b18c-a4e1c597b3b9